bitfinex/quotes_SOLUSD_20251214
["timestamp","ask_amount","ask_price","bid_price","bid_amount"]
[1765686697156,0.14216157,132.93,132.92,0.7]
[1765686701876,0.14216157,132.92,132.9,8.22428665]
[1765686702042,0.14216157,132.92,132.9,0.7]
[1765686704261,8.36555218,132.92,132.89,72.12473061]
[1765686704569,8.36555218,132.92,132.89,72.82473061]
[1765686705670,8.36555218,132.92,132.89,72.12473061]
[1765686705846,8.36555218,132.92,132.9,0.7]
[1765686708667,7.66555218,132.92,132.9,0.7]
[1765686708872,0.14216157,132.92,132.9,0.7]
[1765686709076,0.14216157,132.92,132.9,4.09994175]
[1765686709763,0.14216157,132.92,132.91,0.7]
[1765686715187,0.14216157,132.92,132.91,11.62383009]
[1765686715357,8.24,132.93,132.91,8.22388834]
[1765686715561,8.24,132.93,132.92,0.71]
[1765686715762,8.38216157,132.93,132.92,0.71]
[1765686717284,0.14216157,132.93,132.92,0.71]
[1765686720387,0.14216157,132.92,132.91,10.92383009]
[1765686720684,0.14216157,132.92,132.91,11.63383009]
[1765686721586,0.14216157,132.92,132.91,11.63127557]
[1765686723262,0.14216157,132.93,132.91,11.63127557]
[1765686725576,0.14216157,132.93,132.92,0.71]
[1765686726188,0.14216157,132.93,132.91,10.92127557]
[1765686726487,0.14216157,132.93,132.91,11.63127557]
[1765686727094,0.14216157,132.93,132.91,72.83127557]
[1765686728296,0.14216157,132.93,132.92,0.71]
[1765686728874,21.46242358,132.96,132.92,0.71]
[1765686730301,7.52200839,132.95,132.92,0.71]
[1765686730881,0.14216157,132.94,132.92,0.71]
[1765686736783,0.14216157,132.93,132.92,0.71]
[1765686746408,0.14216157,132.93,132.9,76.96423845]
[1765686746614,0.14216157,132.9,132.88,2.55094986]
[1765686746787,2.31656564,132.89,132.88,2.55094986]
[1765686747117,0.14216157,132.89,132.88,2.55094986]
[1765686747414,9.84158633,132.89,132.88,2.55094986]
[1765686756133,7.66718226,132.89,132.88,2.55094986]
[1765686774839,9.84351276,132.89,132.88,2.55094986]
[1765686775631,18.93778082,132.89,132.88,2.55094986]
[1765686776243,41.54772165,132.89,132.88,2.55094986]
[1765686777317,0.14216157,132.85,132.82,0.72]
[1765686778340,7.66997217,132.85,132.82,0.72]
[1765686778642,7.66997217,132.85,132.81,1.6763305]
[1765686779137,7.66997217,132.85,132.82,2.1763305]
[1765686779342,0.14216157,132.85,132.82,9.7052362]
[1765686779918,0.14216157,132.87,132.84,2.1763305]
[1765686780112,40.10027395,132.89,132.85,2.1763305]
[1765686780317,7.52577759,132.88,132.85,2.1763305]
[1765686780813,0.14216157,132.87,132.86,0.72]
[1765686789530,0.14216157,132.86,132.85,61.2]
[1765686789849,0.14216157,132.86,132.84,70.16]
[1765686792752,0.14216157,132.86,132.85,0.72]
[1765686805170,0.14216157,132.86,132.83,68.7282225]
[1765686805382,0.14216157,132.86,132.84,0.68]
[1765686808272,0.14216157,132.86,132.84,8.20784449]
[1765686808575,0.14216157,132.86,132.85,0.7]
[1765686813356,0.14216157,132.86,132.84,0.7]
[1765686814686,0.14216157,132.85,132.83,68.72816519]
[1765686814985,0.14216157,132.85,132.83,61.9]
[1765686815155,0.83216157,132.85,132.83,61.9]
[1765686816592,8.35956136,132.85,132.83,61.9]
[1765686819195,8.35956136,132.85,132.81,10.93074593]
[1765686819369,8.35956136,132.85,132.82,0.7]
[1765686820484,0.14216157,132.83,132.82,0.7]
[1765686822282,0.14216157,132.83,132.81,72.83074593]
[1765686822590,0.14216157,132.83,132.82,0.7]
[1765686824181,0.14216157,132.83,132.81,72.13074593]
[1765686824479,0.83216157,132.83,132.81,72.83074593]
[1765686824681,0.14216157,132.83,132.81,72.13074593]
[1765686824881,0.14216157,132.83,132.82,0.7]
[1765686825287,0.14216157,132.83,132.81,0.7]
[1765686825478,0.83216157,132.83,132.81,0.7]
[1765686825991,0.14216157,132.83,132.81,0.7]
[1765686826182,8.36076562,132.83,132.81,0.7]
[1765686827181,0.14216157,132.81,132.79,72.83360511]
[1765686827385,0.14216157,132.81,132.8,0.7]
[1765686828302,0.14216157,132.81,132.8,8.23012048]
[1765686831474,0.14216157,132.81,132.8,7.73012048]
[1765686832696,0.14216157,132.81,132.8,11.13322726]
[1765686833371,0.14216157,132.81,132.8,7.73012048]
[1765686833700,0.14216157,132.81,132.8,11.13322726]
[1765686834105,0.69,132.83,132.8,11.13322726]
[1765686835190,0.69,132.83,132.8,7.73012048]
[1765686835395,0.69,132.83,132.8,11.13322726]
[1765686837400,0.14216157,132.82,132.8,11.13322726]
[1765686838186,0.14216157,132.82,132.8,7.73012048]
[1765686838905,0.67,132.82,132.8,7.73012048]
[1765686839208,0.14216157,132.81,132.8,7.73012048]
[1765686840207,8.19635501,132.87,132.8,83.97633404]
[1765686840403,8.19635501,132.87,132.84,3.40310678]
[1765686840704,0.14216157,132.86,132.84,3.40310678]
[1765686840888,8.19635501,132.87,132.84,4.11310678]
[1765686841090,7.52635501,132.87,132.84,4.11310678]
[1765686841294,0.14216157,132.85,132.84,4.11310678]
[1765686841588,0.67,132.86,132.84,4.11310678]
[1765686841800,0.14216157,132.85,132.84,4.11310678]
[1765686843609,8.195743,132.88,132.84,11.64095983]
[1765686843913,0.14216157,132.87,132.85,4.11310678]
[1765686844092,0.14216157,132.88,132.86,3.40310678]
[1765686844296,8.1952411,132.89,132.86,4.11310678]
[1765686844498,0.67,132.88,132.86,4.11310678]
[1765686844812,0.14216157,132.87,132.86,4.11310678]
[1765686845382,0.14216157,132.87,132.86,0.71]
[1765686845786,7.66831495,132.87,132.85,8.95]
[1765686845993,8.33831495,132.87,132.85,8.95]
[1765686846207,8.33831495,132.87,132.84,4.11310678]
[1765686846590,8.33831495,132.87,132.85,0.71]
[1765686846793,0.81216157,132.87,132.85,0.71]
[1765686847793,0.14216157,132.87,132.85,0.71]
[1765686869623,0.14216157,132.87,132.85,79.85366227]
[1765686870129,0.14216157,132.87,132.86,0.7]
[1765686882625,0.14216157,132.9,132.86,71.60317549]
[1765686882821,0.14216157,132.9,132.87,10.41645564]
[1765686883028,8.22414821,132.91,132.88,0.7]
[1765686883224,0.7,132.9,132.88,0.7]
[1765686883526,0.14216157,132.89,132.87,11.11645564]
[1765686884140,0.14216157,132.89,132.87,18.64229888]
[1765686885339,0.14216157,132.89,132.88,0.7]
[1765686896363,0.82216157,132.89,132.87,79.14229888]
[1765686896542,0.82216157,132.89,132.87,79.81229888]
[1765686896730,0.32216157,132.89,132.87,79.81229888]
[1765686897051,9.70060385,132.91,132.87,79.81229888]
[1765686897549,7.52414821,132.91,132.87,79.81154988]
[1765686898544,7.52414821,132.91,132.88,0.67]
[1765686898750,0.82216157,132.9,132.88,0.67]
[1765686898941,0.32216157,132.9,132.88,0.67]
[1765686900354,0.32216157,132.9,132.87,79.14154988]
[1765686900539,0.32216157,132.9,132.87,79.81154988]
[1765686901048,0.32216157,132.9,132.88,0.67]
[1765686901049,0.46432314,132.9,132.88,0.67]
[1765686902542,0.51,132.89,132.87,69.44]
[1765686905261,0.51,132.89,132.87,8.24]
[1765686907054,0.51,132.89,132.87,8.91]
[1765686911142,0.51,132.89,132.87,0.67]
[1765686913040,0.14216157,132.88,132.86,61.2]
[1765686913572,0.65216157,132.88,132.86,61.2]
[1765686913768,0.14216157,132.88,132.86,61.87]
[1765686917274,0.14216157,132.88,132.86,0.67]
[1765686920189,0.65216157,132.88,132.86,0.67]
[1765686921084,8.17777561,132.88,132.86,0.67]
[1765686921275,0.51,132.87,132.85,61.2]
[1765686921457,0.51,132.87,132.84,77.63760052]
[1765686922576,0.51,132.87,132.85,0.67]
[1765686922785,0.51,132.87,132.84,77.63760052]
[1765686923787,0.51,132.87,132.84,79.81330716]
[1765686923991,0.51,132.87,132.84,77.63760052]
[1765686924288,0.51,132.87,132.85,0.68]
[1765686924653,8.17777561,132.88,132.85,0.68]
[1765686925893,7.66777561,132.88,132.85,0.68]
[1765686926065,0.51,132.87,132.85,0.68]
[1765686926988,8.17777561,132.88,132.85,0.68]
[1765686930090,3.54324533,132.86,132.82,0.72]
[1765686930266,3.40108376,132.85,132.81,0.72]
[1765686930466,3.91108376,132.85,132.81,0.72]
[1765686930669,3.40108376,132.85,132.81,0.72]
[1765686930876,0.14216157,132.83,132.81,0.72]
[1765686931288,0.65216157,132.83,132.81,0.72]
[1765686931788,0.65216157,132.83,132.8,4.12108376]
[1765686931967,0.65216157,132.83,132.81,0.72]
[1765686941798,0.14216157,132.83,132.81,0.72]
[1765686942488,10.92814886,132.86,132.82,3.40265095]
[1765686942697,0.14216157,132.85,132.83,3.40265095]
[1765686942890,0.14216157,132.85,132.84,3.40265095]
[1765686943090,0.51,132.88,132.84,3.40265095]
[1765686943304,0.51,132.88,132.85,4.12265095]
[1765686943599,0.14216157,132.87,132.85,4.12265095]
[1765686943781,0.14216157,132.87,132.86,0.72]
[1765686944174,8.03559072,132.88,132.86,0.72]
[1765686944594,0.14216157,132.87,132.86,0.72]
[1765686950410,0.14216157,132.87,132.85,3.40265095]
[1765686950713,0.14216157,132.87,132.85,4.12265095]
[1765686951202,0.14216157,132.87,132.85,0.72]
[1765686952611,0.14216157,132.87,132.85,4.12265095]
[1765686953013,0.65216157,132.87,132.85,0.72]
[1765686955217,0.14216157,132.87,132.85,0.72]
[1765686957313,0.14216157,132.86,132.84,61.91]
[1765686957513,0.14216157,132.86,132.84,61.2]
[1765686957821,0.65216157,132.86,132.84,61.2]
[1765686958021,0.65216157,132.86,132.84,61.91]
[1765686958808,0.65216157,132.86,132.84,0.71]
[1765686959010,8.17892057,132.86,132.84,0.71]
[1765686960590,0.51,132.85,132.83,64.60265095]
[1765686960817,0.51,132.85,132.82,80.37142337]
[1765686961023,0.51,132.85,132.83,0.71]
[1765686961216,7.66892057,132.86,132.83,0.71]
[1765686961423,8.17892057,132.86,132.83,0.71]
[1765686965210,0.51,132.85,132.82,81.08142337]
[1765686965409,8.17892057,132.86,132.83,0.71]
[1765686967827,0.14216157,132.84,132.82,73.55265095]
[1765686968000,0.14216157,132.84,132.82,70.15]
[1765686968825,0.14216157,132.84,132.82,61.91]
[1765686970730,0.14216157,132.84,132.82,0.71]
[1765686974217,0.65216157,132.84,132.82,0.71]
[1765686974412,0.14216157,132.84,132.82,0.71]
[1765686975807,8.1800294,132.84,132.81,0.71]
[1765686976331,0.51,132.83,132.81,0.71]
[1765686976505,8.1800294,132.84,132.81,0.71]
[1765686978526,0.51,132.83,132.81,0.71]
[1765686979036,0.14216157,132.82,132.8,73.55212947]
[1765686979330,0.14216157,132.82,132.8,8.95]
[1765686979637,0.14216157,132.82,132.8,0.71]
[1765686983412,0.14216157,132.82,132.8,4.11212947]
[1765686983939,0.14216157,132.82,132.8,2.88793887]
[1765686985137,0.14216157,132.82,132.8,0.71]
[1765686985440,0.14216157,132.82,132.8,2.88793887]
[1765686986143,0.14216157,132.82,132.81,0.67]
[1765686987047,0.14216157,132.82,132.79,70.90843953]
[1765686987250,0.65216157,132.82,132.8,0.67]
[1765686988542,0.14216157,132.82,132.8,0.67]
[1765686989420,8.18119125,132.82,132.79,61.2]
[1765686989745,8.18119125,132.82,132.79,61.87]
[1765686990431,8.18119125,132.82,132.8,0.67]
[1765686991343,8.18119125,132.82,132.79,61.2]
[1765686991533,8.18119125,132.82,132.79,61.87]
[1765686992042,8.18119125,132.82,132.79,61.2]
[1765686992348,8.18119125,132.82,132.8,0.67]
[1765686993329,7.67119125,132.82,132.78,8.24]
[1765686993638,0.14216157,132.8,132.78,10.41793887]
[1765686993846,0.14216157,132.8,132.79,0.67]
[1765686995850,0.14216157,132.81,132.79,2.84793887]
[1765686996217,0.14216157,132.81,132.8,0.67]
[1765687001965,8.03902968,132.82,132.8,0.67]
[1765687002151,0.14216157,132.81,132.8,0.67]
[1765687003932,0.14216157,132.81,132.79,8.20068397]
[1765687004130,0.14216157,132.81,132.79,7.53068397]
[1765687004330,0.14216157,132.81,132.79,8.20068397]
[1765687004553,7.67194823,132.81,132.78,69.44]
[1765687004731,8.18194823,132.81,132.78,61.87]
[1765687005136,0.14216157,132.79,132.77,0.67]
[1765687008854,0.51,132.78,132.75,11.98633182]
[1765687009050,0.51,132.78,132.75,0.1]
[1765687009247,12.02849339,132.79,132.76,10.38030106]
[1765687009440,11.88633182,132.79,132.77,2.17827258]
[1765687009764,0.14216157,132.81,132.78,2.84827258]
[1765687009931,0.14216157,132.81,132.78,13.36654516]
[1765687010132,0.14216157,132.81,132.79,0.67]
[1765687014861,8.18175282,132.81,132.79,0.67]
[1765687015864,8.18175282,132.81,132.78,76.97102146]
[1765687016041,8.18175282,132.81,132.78,77.64102146]
[1765687017167,8.18175282,132.81,132.78,70.11]
[1765687017372,8.18175282,132.81,132.78,61.87]
[1765687019388,8.18175282,132.81,132.78,61.2]
[1765687019590,8.18175282,132.81,132.78,61.87]
[1765687019874,0.51,132.8,132.78,61.2]
[1765687020244,0.51,132.8,132.78,60.7]
[1765687020944,0.51,132.8,132.76,0.67]
[1765687021452,0.14216157,132.78,132.76,0.67]
[1765687021868,7.67343227,132.78,132.76,0.67]
[1765687022577,7.67343227,132.78,132.76,0.17]
[1765687023955,0.14216157,132.78,132.76,0.17]
[1765687025988,0.14216157,132.78,132.76,2.34827258]
[1765687027576,0.86216157,132.78,132.75,70.51104615]
[1765687027779,8.39350765,132.78,132.75,71.18104615]
[1765687028702,31.015383,132.78,132.76,0.67]
[1765687028904,8.39350765,132.78,132.76,0.67]
[1765687029102,0.86216157,132.78,132.76,0.67]
[1765687030510,8.39356304,132.78,132.75,62.97827258]
[1765687030716,31.01543839,132.78,132.75,62.97827258]
[1765687030895,0.72,132.77,132.75,70.5111721]
[1765687031209,0.72,132.77,132.75,71.1811721]
[1765687031413,23.48403692,132.78,132.75,71.1811721]
[1765687031606,0.86216157,132.78,132.75,70.5111721]
[1765687031781,0.86216157,132.78,132.76,0.67]
[1765687041730,0.14216157,132.78,132.76,0.67]
[1765687042226,0.86216157,132.78,132.76,0.67]
[1765687044133,0.72,132.78,132.76,0.67]
[1765687044913,8.25132951,132.78,132.75,0.1]
[1765687045118,8.25132951,132.78,132.75,0.82]
[1765687045318,0.69,132.77,132.75,0.82]
[1765687049243,0.14216157,132.77,132.75,0.82]
[1765687051552,0.14216157,132.77,132.75,4.22596539]
[1765687058227,23.28358131,132.78,132.76,0.68]
[1765687058437,0.14216157,132.79,132.76,0.68]
[1765687058752,0.14216157,132.8,132.77,3.40596539]
[1765687058922,0.80216157,132.8,132.77,3.40596539]
[1765687059249,0.80216157,132.8,132.78,0.68]
[1765687063158,0.14216157,132.8,132.78,0.68]
[1765687063346,0.80216157,132.8,132.78,4.08596539]
[1765687064626,0.80216157,132.8,132.78,0.68]
[1765687067182,43.85466256,132.82,132.78,11.61720475]
[1765687067352,0.14216157,132.81,132.78,72.31720475]
[1765687067558,0.14216157,132.81,132.79,0.68]
[1765687067753,7.52910716,132.82,132.79,4.08596539]
[1765687067973,0.14216157,132.82,132.8,3.40596539]
[1765687068148,0.14216157,132.82,132.8,4.08596539]
[1765687068348,0.14216157,132.82,132.81,0.68]
[1765687072660,0.14216157,132.82,132.8,4.08596539]
[1765687073172,0.14216157,132.82,132.8,0.68]
[1765687073347,8.33116426,132.82,132.8,0.68]
[1765687073545,7.67116426,132.82,132.8,0.68]
[1765687074750,8.33116426,132.82,132.8,0.68]
[1765687078378,7.67116426,132.82,132.8,0.68]
[1765687079683,8.37116426,132.82,132.8,0.68]
[1765687080555,7.67116426,132.82,132.8,0.67]
[1765687080981,8.37116426,132.82,132.8,0.67]
[1765687087168,0.7,132.81,132.79,60.7]
[1765687087371,4.10363329,132.81,132.79,60.7]
[1765687088593,7.53012048,132.8,132.79,61.37]
[1765687089090,7.53012048,132.8,132.79,60.7]
[1765687089265,8.23012048,132.8,132.78,0.67]
[1765687089464,27.05343723,132.81,132.78,61.37]
[1765687090494,0.7,132.8,132.78,61.37]
[1765687093999,7.53068755,132.79,132.78,60.7]
[1765687094596,8.23068755,132.79,132.78,60.7]
[1765687095162,8.23068755,132.79,132.77,69.61]
[1765687095367,8.23068755,132.79,132.77,60.7]
[1765687095575,7.53068755,132.79,132.77,61.37]
[1765687096998,8.23068755,132.79,132.77,61.37]
[1765687097875,8.23068755,132.79,132.77,60.7]
[1765687098203,4.24579486,132.78,132.75,61.47]
[1765687098601,0.7,132.77,132.75,61.47]
[1765687099306,7.53238927,132.76,132.75,61.47]
[1765687100303,7.53182194,132.77,132.75,61.47]
[1765687100503,7.53182194,132.77,132.76,0.67]
[1765687107624,7.53182194,132.77,132.75,0.1]
[1765687107794,8.23182194,132.77,132.75,0.78]
[1765687107994,7.53182194,132.77,132.75,0.78]
[1765687109809,8.23182194,132.77,132.75,0.78]
[1765687111633,7.53182194,132.77,132.75,0.78]
[1765687114656,8.23182194,132.77,132.75,0.78]
[1765687115218,8.23182194,132.77,132.75,0.1]
[1765687115417,8.23182194,132.77,132.75,0.78]
[1765687122246,7.53182194,132.77,132.75,0.78]
[1765687122425,8.23182194,132.77,132.75,0.78]
[1765687124311,3.0222274,132.76,132.75,0.1]
[1765687125126,6.03915993,132.76,132.75,0.1]
[1765687125534,13.5715492,132.76,132.75,0.1]
[1765687135863,10.5493218,132.76,132.75,0.82]
[1765687136050,7.53238927,132.76,132.75,3.00006583]
[1765687136842,7.53238927,132.76,132.75,0.82]
[1765687137365,7.67398351,132.77,132.75,0.82]
[1765687142656,0.71,132.76,132.75,0.1]
[1765687143162,0.14216157,132.76,132.75,0.1]
[1765687144162,7.67455084,132.76,132.75,0.1]
[1765687150967,8.38455084,132.76,132.75,0.1]
[1765687151262,31.01154484,132.76,132.75,0.1]
[1765687151862,39.27154484,132.76,132.75,0.1]
[1765687152380,31.01154484,132.76,132.75,0.1]
[1765687152673,39.27154484,132.76,132.75,0.1]
[1765687152843,31.01154484,132.76,132.75,0.1]
[1765687153246,39.27154484,132.76,132.75,0.1]
[1765687161676,41.45164052,132.76,132.75,0.1]
[1765687164379,41.45164052,132.76,132.75,1e-08]
[1765687164570,48.3658129,132.76,132.75,1e-08]
[1765687164776,50.54590858,132.76,132.75,1e-08]
[1765687165082,50.54590858,132.76,132.74,1e-08]
[1765687165083,9.89642963,132.75,132.74,1e-08]
[1765687165254,12.07652531,132.75,132.74,1e-08]
[1765687165778,15.09414063,132.75,132.74,1e-08]
[1765687166366,22.62709731,132.75,132.74,1e-08]
[1765687166560,24.80719299,132.75,132.74,1e-08]
[1765687166876,9.62210649,132.74,132.73,1e-08]
[1765687167081,20.06220217,132.74,132.73,1e-08]
[1765687167466,23.08027286,132.74,132.73,1e-08]
[1765687168981,30.61379704,132.74,132.73,1e-08]
[1765687170080,31.8427132,132.74,132.73,1e-08]
[1765687171878,10.69375644,132.74,132.73,0.68000001]
[1765687172275,10.55159487,132.74,132.73,0.68000001]
[1765687172455,10.69375644,132.74,132.73,0.68000001]
[1765687173452,10.69375644,132.74,132.73,1e-08]
[1765687173658,10.69375644,132.74,132.73,0.68000001]
[1765687179997,7.67568575,132.74,132.73,0.68000001]
[1765687182675,10.69307344,132.74,132.73,0.68000001]
[1765687184402,7.67568575,132.74,132.73,0.68000001]
[1765687184710,10.69307344,132.74,132.73,0.68000001]
[1765687185881,10.69307344,132.74,132.73,1e-08]
[1765687186097,10.69307344,132.74,132.73,0.68000001]
[1765687189203,7.67568575,132.74,132.73,0.68000001]
[1765687201491,7.67568575,132.74,132.73,0.69000001]
[1765687207500,0.14216157,132.74,132.73,0.69000001]
[1765687207799,20.58005201,132.75,132.73,0.69000001]
[1765687214728,0.14216157,132.74,132.73,0.69000001]
[1765687216241,7.67568575,132.74,132.73,0.69000001]
[1765687228444,8.37568575,132.74,132.73,1e-08]
[1765687230543,10.55681023,132.74,132.73,1e-08]
[1765687234860,7.67568575,132.74,132.73,1e-08]
[1765687235026,10.55681023,132.74,132.73,1e-08]
[1765687235949,8.37568575,132.74,132.73,1e-08]
[1765687236661,7.67568575,132.74,132.73,1e-08]
[1765687236957,8.37568575,132.74,132.73,1e-08]
[1765687239158,7.67568575,132.74,132.73,1e-08]
[1765687248026,10.55681023,132.74,132.73,1e-08]
[1765687248856,8.37568575,132.74,132.73,1e-08]
[1765687249065,7.67568575,132.74,132.73,1e-08]
[1765687249435,10.69307344,132.74,132.73,1e-08]
[1765687249961,13.57419792,132.74,132.73,1e-08]
[1765687251576,13.57453163,132.74,132.73,1e-08]
[1765687253164,21.83453163,132.74,132.73,1e-08]
[1765687254172,21.69237006,132.74,132.73,1e-08]
[1765687255868,18.81091187,132.74,132.73,1e-08]
[1765687256471,19.47091187,132.74,132.73,1e-08]
[1765687256773,18.81091187,132.74,132.73,1e-08]
[1765687257779,18.95307344,132.74,132.73,1e-08]
[1765687260746,19.61307344,132.74,132.73,1e-08]
[1765687261563,18.95307344,132.74,132.73,1e-08]
[1765687263875,15.93568575,132.74,132.73,1e-08]
[1765687264956,18.95307344,132.74,132.73,1e-08]
[1765687266875,21.79453163,132.74,132.73,1e-08]
[1765687275484,13.0470912,132.72,132.71,0.1]
[1765687275791,32.72497902,132.72,132.71,0.1]
[1765687276081,33.38497902,132.72,132.71,0.1]
[1765687276486,16.03071096,132.72,132.71,0.1]
[1765687276686,46.92965749,132.72,132.71,0.1]
[1765687276869,35.8281993,132.72,132.71,0.79]
[1765687277071,0.14216157,132.72,132.71,0.79]
[1765687277273,3.01761532,132.73,132.71,0.79]
[1765687277584,0.14216157,132.72,132.71,0.79]
[1765687279095,7.676821,132.72,132.71,0.79]
[1765687280194,9.85827919,132.72,132.71,0.79]
[1765687281096,19.5765247,132.72,132.71,0.79]
[1765687282398,17.39506651,132.72,132.71,0.79]
[1765687282801,19.5765247,132.72,132.71,0.79]
[1765687283301,18.05506651,132.72,132.71,0.1]
[1765687283464,20.2365247,132.72,132.71,0.1]
[1765687283898,17.39506651,132.72,132.71,0.1]
[1765687284201,19.5765247,132.72,132.71,0.1]
[1765687284398,20.2665247,132.72,132.71,0.1]
[1765687285979,37.62079276,132.72,132.71,0.1]
[1765687286389,50.66788396,132.72,132.71,0.1]
[1765687286790,50.66929669,132.72,132.71,0.1]
[1765687289210,48.48642577,132.72,132.71,0.1]
[1765687289376,50.66929669,132.72,132.71,0.1]
[1765687289894,51.89706668,132.72,132.71,0.1]
[1765687291896,48.48642577,132.72,132.71,0.1]
[1765687292102,51.89706668,132.72,132.71,0.1]
[1765687293400,48.48642577,132.72,132.71,0.1]
[1765687293599,51.89706668,132.72,132.71,0.1]
[1765687296080,48.48642577,132.72,132.71,0.1]
[1765687296274,51.20706668,132.72,132.71,0.1]
[1765687297177,42.11279862,132.72,132.71,0.8]
[1765687297699,42.11279862,132.72,132.71,0.1]
[1765687299502,42.78279862,132.72,132.71,0.1]
[1765687300585,42.11279862,132.72,132.71,0.1]
[1765687301711,38.70215771,132.72,132.71,0.8]
[1765687301918,33.85279862,132.72,132.71,0.8]
[1765687302217,30.44215771,132.72,132.71,0.8]
[1765687302379,21.47570742,132.72,132.71,0.1]
[1765687302711,42.11279862,132.72,132.71,0.1]
[1765687302876,42.11279862,132.72,132.71,0.8]
[1765687303081,33.85279862,132.72,132.71,0.8]
[1765687303311,42.11279862,132.72,132.71,0.8]
[1765687304013,33.85279862,132.72,132.71,0.8]
[1765687304198,30.44215771,132.72,132.71,0.8]
[1765687304398,42.11279862,132.72,132.71,0.8]
[1765687304708,38.70215771,132.72,132.71,0.8]
[1765687304884,42.11279862,132.72,132.71,0.8]
[1765687307813,42.11279862,132.72,132.71,0.1]
[1765687309858,38.70215771,132.72,132.71,0.8]
[1765687309991,30.44215771,132.72,132.71,0.8]
[1765687310319,20.7239122,132.72,132.71,0.8]
[1765687316326,24.80455311,132.72,132.71,0.1]
[1765687316509,21.3939122,132.72,132.71,0.1]
[1765687316704,24.80455311,132.72,132.71,0.1]
[1765687317018,36.9171196,132.72,132.71,0.1]
[1765687317614,24.41221063,132.72,132.71,0.1]
[1765687317814,24.13455311,132.72,132.71,0.1]
[1765687318020,24.80455311,132.72,132.71,0.1]
[1765687318394,24.13455311,132.72,132.71,0.1]
[1765687318602,20.7239122,132.72,132.71,0.77]
[1765687318897,20.7239122,132.72,132.71,0.1]
[1765687319320,30.48818026,132.72,132.71,0.1]
[1765687319516,33.22882117,132.72,132.71,0.1]
[1765687320020,24.13455311,132.72,132.71,0.1]
[1765687320200,20.7239122,132.72,132.71,0.77]
[1765687320526,28.84175063,132.72,132.71,0.77]
[1765687320728,28.9839122,132.72,132.71,0.77]
[1765687321102,20.7239122,132.72,132.71,0.77]
[1765687322126,20.7239122,132.72,132.71,0.1]
[1765687322625,28.9839122,132.72,132.71,0.1]
[1765687323194,20.7239122,132.72,132.71,0.1]
[1765687323394,28.9839122,132.72,132.71,0.77]
[1765687323607,20.7239122,132.72,132.71,0.1]
[1765687323824,28.9839122,132.72,132.71,0.1]
[1765687324716,20.7239122,132.72,132.71,0.1]
[1765687324904,28.9839122,132.72,132.71,0.1]
[1765687325102,20.7239122,132.72,132.71,0.1]
[1765687325502,28.9839122,132.72,132.71,0.1]
[1765687326230,20.7239122,132.72,132.71,0.1]
[1765687326408,28.9839122,132.72,132.71,0.1]
[1765687326606,42.01516586,132.72,132.71,0.1]
[1765687327010,64.65411239,132.72,132.71,0.1]
[1765687327808,0.14216157,132.68,132.67,0.77]
[1765687329115,7.67909253,132.68,132.67,0.77]
[1765687329310,7.67909253,132.68,132.67,0.1]
[1765687329525,7.67909253,132.68,132.67,0.77]
[1765687333120,15.93909253,132.68,132.67,0.77]
[1765687333642,20.0182397,132.68,132.67,0.1]
[1765687333843,19.3482397,132.68,132.67,0.1]
[1765687334867,29.11250776,132.68,132.67,0.1]
[1765687335035,32.52165493,132.68,132.67,0.1]
[1765687336327,9.23642963,132.67,132.66,0.1]
[1765687336544,13.3155768,132.67,132.66,0.1]
[1765687337434,24.26222302,132.67,132.66,0.1]
[1765687337635,24.26222302,132.67,132.62,0.77]
[1765687337636,13.0470912,132.64,132.62,0.77]
[1765687337845,13.18925277,132.63,132.62,0.77]
[1765687339355,20.72902506,132.63,132.62,0.1]
[1765687339946,20.72902506,132.63,132.62,0.77]
[1765687342465,0.14216157,132.63,132.62,0.77]
[1765687342766,7.53941246,132.64,132.62,0.77]
[1765687342968,0.14216157,132.63,132.62,0.77]
[1765687345440,0.14216157,132.64,132.62,0.77]